bitfinex-derivatives/quotes_BTCF0:USTF0_20251115
["timestamp","ask_amount","ask_price","bid_price","bid_amount"]
[1763212289885,0.51672775,95941.0,95940.0,0.04710629]
[1763212290283,0.15592775,95941.0,95940.0,0.04710629]
[1763212292085,0.406,95951.0,95950.0,0.04595]
[1763212292487,0.406,95951.0,95950.0,0.07390053]
[1763212292488,0.52287426,95951.0,95950.0,0.07390053]
[1763212292689,0.16207426,95951.0,95950.0,0.04595]
[1763212293094,0.16207426,95951.0,95950.0,0.07389514]
[1763212293481,0.16207426,95951.0,95950.0,0.04595]
[1763212294093,0.16207426,95951.0,95950.0,0.07389357]
[1763212294290,0.16207426,95951.0,95950.0,0.04595]
[1763212294490,0.16207426,95951.0,95950.0,0.07389303]
[1763212294692,0.16207426,95951.0,95950.0,0.04595]
[1763212296495,0.0452,95951.0,95950.0,0.04595]
[1763212303998,0.02312,95951.0,95950.0,0.04595]
[1763212304301,0.02312,95951.0,95950.0,0.08330259]
[1763212304799,0.0452,95951.0,95950.0,0.04595]
[1763212305594,0.0452,95951.0,95950.0,0.04695]
[1763212306200,0.0452,95951.0,95950.0,0.04595]
[1763212307302,0.0452,95951.0,95950.0,0.04695]
[1763212309193,0.0452,95951.0,95950.0,0.10201778]
[1763212310102,0.0452,95951.0,95950.0,0.04595]
[1763212311004,0.0452,95951.0,95950.0,0.10206331]
[1763212311194,0.0452,95951.0,95950.0,0.04595]
[1763212324809,0.0432,95947.0,95946.0,0.3608]
[1763212327509,0.0432,95941.0,95940.0,0.00015629]
[1763212328215,0.0432,95941.0,95940.0,0.02231629]
[1763212328514,0.0432,95941.0,95940.0,0.04550629]
[1763212335504,0.10765263,95950.0,95940.0,0.04550629]
[1763212335806,0.04652803,95950.0,95949.0,0.04573]
[1763212336011,0.04433,95947.0,95946.0,0.3608]
[1763212336211,0.04433,95941.0,95940.0,0.00015629]
[1763212336511,0.16182419,95941.0,95940.0,0.00015629]
[1763212336716,0.16182419,95941.0,95940.0,0.00215629]
[1763212338716,0.16182419,95941.0,95940.0,0.00015629]
[1763212342217,0.16182419,95941.0,95940.0,0.05637777]
[1763212342514,0.16182419,95941.0,95940.0,0.10029777]
[1763212343120,0.16182419,95941.0,95940.0,0.04407629]
[1763212344014,0.04433,95941.0,95940.0,0.04407629]
[1763212344612,0.02213,95946.0,95945.0,0.04392]
[1763212344813,0.02213,95946.0,95945.0,0.40472]
[1763212347217,0.04755803,95950.0,95949.0,0.04392]
[1763212347924,0.02432803,95950.0,95949.0,0.04392]
[1763212348124,0.00219803,95950.0,95949.0,0.04392]
[1763212348322,0.02371803,95950.0,95949.0,0.04392]
[1763212348523,0.04540803,95950.0,95949.0,0.04392]
[1763212358534,0.04321,95948.0,95947.0,0.3608]
[1763212358731,0.04321,95948.0,95947.0,0.38299]
[1763212359034,0.04321,95948.0,95947.0,0.40585]
[1763212360631,0.15809845,95948.0,95947.0,0.3608]
[1763212363032,0.15809845,95948.0,95947.0,0.38299]
[1763212363240,0.15809845,95948.0,95947.0,0.40585]
[1763212375755,0.11488845,95948.0,95947.0,0.40585]
[1763212375954,0.02152,95948.0,95947.0,0.40585]
[1763212376346,0.04321,95948.0,95947.0,0.40585]
[1763212378362,0.02336803,95950.0,95949.0,0.04375]
[1763212378562,0.00219803,95950.0,95949.0,0.04375]
[1763212379860,0.01289,95970.0,95958.0,0.04375]
[1763212380164,0.02132621,95959.0,95958.0,0.40455]
[1763212380463,0.00015621,95959.0,95958.0,0.40455]
[1763212380665,0.02132621,95959.0,95958.0,0.40455]
[1763212380866,0.00015621,95959.0,95958.0,0.40455]
[1763212382061,0.00015621,95959.0,95958.0,0.40555]
[1763212382265,0.02132621,95959.0,95958.0,0.40555]
[1763212383463,0.02132621,95959.0,95958.0,0.40455]
[1763212385468,0.04458621,95959.0,95958.0,0.40455]
[1763212389665,0.02132621,95959.0,95958.0,0.40455]
[1763212391073,0.00015621,95959.0,95958.0,0.40455]
[1763212391975,0.02132621,95959.0,95958.0,0.40455]
[1763212394574,0.04294621,95959.0,95958.0,0.40455]
[1763212394973,0.02132621,95959.0,95958.0,0.40455]
[1763212395375,0.00015621,95959.0,95958.0,0.40455]
[1763212396876,0.02209621,95959.0,95958.0,0.40455]
[1763212397978,0.04371621,95959.0,95958.0,0.40455]
[1763212400279,0.16115698,95959.0,95958.0,0.40455]
[1763212401682,0.16115698,95959.0,95958.0,0.43894285]
[1763212401975,0.16115698,95959.0,95958.0,0.41696396]
[1763212402175,0.16115698,95959.0,95958.0,0.3608]
[1763212404480,0.16115698,95959.0,95958.0,0.38221]
[1763212404980,0.16115698,95959.0,95958.0,0.40375]
[1763212406678,0.16115698,95959.0,95958.0,0.45992522]
[1763212406879,0.00015621,95959.0,95958.0,0.45992522]
[1763212407579,0.02209621,95959.0,95958.0,0.45992522]
[1763212408382,0.00015621,95959.0,95958.0,0.5080404]
[1763212408574,0.00015621,95959.0,95958.0,0.40375]
[1763212409284,0.05823,95980.0,95979.0,0.04476]
[1763212409485,0.06042803,95980.0,95979.0,0.08220764]
[1763212409680,0.17514958,95980.0,95979.0,0.04476]
[1763212409887,0.0448,95974.0,95973.0,0.40556]
[1763212414180,0.0472335,95983.0,95982.0,0.04476]
[1763212415085,0.0472335,95983.0,95982.0,0.10091649]
[1763212415283,0.0472335,95983.0,95982.0,0.04476]
[1763212416587,0.0241235,95983.0,95982.0,0.04476]
[1763212416988,0.0024335,95983.0,95982.0,0.04476]
[1763212418891,0.0241235,95983.0,95982.0,0.04476]
[1763212420682,0.0472335,95983.0,95982.0,0.04476]
[1763212421692,0.0472335,95983.0,95982.0,0.02184]
[1763212421889,0.0448,95982.0,95981.0,0.3608]
[1763212422193,0.0448,95982.0,95981.0,0.38264]
[1763212422389,0.0448,95982.0,95981.0,0.40556]
[1763212422692,0.0448,95982.0,95981.0,0.38264]
[1763212422893,0.0448,95982.0,95981.0,0.40556]
[1763212423891,0.0448,95982.0,95981.0,0.38264]
[1763212424091,0.16008174,95982.0,95981.0,0.3608]
[1763212424294,0.16008174,95982.0,95981.0,0.38882944]
[1763212424593,0.06042803,95980.0,95979.0,0.02802944]
[1763212424990,0.0448,95979.0,95978.0,0.02802944]
[1763212425193,0.0448,95978.0,95977.0,0.02802944]
[1763212425582,0.16089176,95978.0,95977.0,0.02802944]
[1763212425780,0.52169176,95978.0,95977.0,0.02802944]
[1763212425985,0.52169176,95978.0,95976.0,0.02802944]
[1763212426295,0.0448,95977.0,95976.0,0.02802944]
[1763212426687,0.15995857,95977.0,95976.0,0.02802944]
[1763212426887,0.0448,95971.0,95970.0,0.40556]
[1763212427193,0.15783784,95971.0,95970.0,0.44292762]
[1763212427388,0.15783784,95971.0,95970.0,0.40556]
[1763212431588,0.15783784,95971.0,95970.0,0.46163068]
[1763212431795,0.15783784,95971.0,95970.0,0.40556]
[1763212432490,0.02169,95971.0,95970.0,0.40556]
[1763212432689,0.05823,95980.0,95979.0,0.04476]
[1763212432889,0.05823,95980.0,95979.0,0.08214127]
[1763212432890,0.06042803,95980.0,95979.0,0.08214127]
[1763212433092,0.17911838,95980.0,95979.0,0.08214127]
[1763212433292,0.17911838,95980.0,95979.0,0.04476]
[1763212434687,0.05823,95975.0,95973.0,0.05607191]
[1763212434997,0.0448,95972.0,95971.0,0.05607191]
[1763212435393,0.16181504,95972.0,95971.0,0.05607191]
[1763212435593,0.16181504,95972.0,95971.0,0.10083191]
[1763212436385,0.16181504,95972.0,95971.0,0.04476]
[1763212438095,0.16181504,95972.0,95971.0,0.1008951]
[1763212438296,0.16181504,95972.0,95971.0,0.04476]
[1763212438491,0.05777,95965.0,95964.0,0.04295629]
[1763212439293,0.05777,95965.0,95964.0,0.00015629]
[1763212440098,0.05777,95965.0,95964.0,0.02150629]
[1763212440296,0.05777,95965.0,95964.0,0.00015629]
[1763212441301,0.05777,95965.0,95964.0,0.02150629]
[1763212441693,0.16880918,95965.0,95964.0,0.00015629]
[1763212442900,0.04398,95961.0,95960.0,0.00245173]
[1763212443198,0.04398,95961.0,95951.0,0.05616681]
[1763212443199,0.04398,95953.0,95951.0,0.05616681]
[1763212443389,0.04398,95946.0,95945.0,0.05616681]
[1763212443591,0.04398,95938.0,95937.0,0.07751681]
[1763212443904,0.04398,95938.0,95937.0,0.0428]
[1763212443905,0.51451585,95938.0,95937.0,0.0428]
[1763212445397,0.15371585,95938.0,95937.0,0.0428]
[1763212445793,0.15371585,95938.0,95931.0,0.05616681]
[1763212445998,0.04398,95932.0,95931.0,0.09896681]
[1763212446404,0.04398,95932.0,95931.0,0.0428]
[1763212446699,0.04398,95932.0,95931.0,0.02135]
[1763212446899,0.04398,95932.0,95931.0,0.0428]
[1763212447398,0.04398,95932.0,95931.0,0.02135]
[1763212447998,0.04398,95932.0,95931.0,0.0438]
[1763212448397,0.04398,95932.0,95931.0,0.0428]
[1763212448597,0.04398,95932.0,95931.0,0.0438]
[1763212449605,0.04398,95945.0,95944.0,0.0428]
[1763212450109,0.16086158,95945.0,95944.0,0.0428]
[1763212450905,0.16086158,95945.0,95944.0,0.02135]
[1763212451598,0.16086158,95945.0,95944.0,0.0428]
[1763212451803,0.16086158,95945.0,95944.0,0.02135]
[1763212455100,0.044,95943.0,95942.0,0.05107109]
[1763212455293,0.044,95943.0,95942.0,0.07270109]
[1763212455497,0.15548199,95943.0,95942.0,0.07270109]
[1763212456694,0.15548199,95943.0,95942.0,0.02799109]
[1763212457205,0.044,95932.0,95931.0,0.40551]
[1763212458503,0.044,95932.0,95931.0,0.40651]
[1763212459304,0.044,95932.0,95931.0,0.46267681]
[1763212459502,0.044,95941.0,95940.0,0.01374]
[1763212459701,0.02277629,95947.0,95946.0,0.04471]
[1763212459905,0.04415629,95947.0,95946.0,0.04471]
[1763212460108,0.16193089,95947.0,95946.0,0.04471]
[1763212467313,0.16193089,95947.0,95946.0,0.05845]
[1763212467514,0.11793089,95947.0,95946.0,0.05845]
[1763212468914,0.16258089,95947.0,95946.0,0.05845]
[1763212472611,0.16258089,95947.0,95946.0,0.11461681]
[1763212472814,0.16258089,95947.0,95946.0,0.05845]
[1763212474512,0.16258089,95947.0,95946.0,0.04471]
[1763212475417,0.16258089,95947.0,95946.0,0.10094042]
[1763212475918,0.16258089,95947.0,95946.0,0.04471]
[1763212476216,0.16258089,95947.0,95946.0,0.10094147]
[1763212479316,0.16258089,95947.0,95946.0,0.04471]
[1763212485526,0.16258089,95947.0,95939.0,0.3608]
[1763212485527,0.05758,95940.0,95939.0,0.4051]
[1763212485825,0.05977803,95940.0,95939.0,0.4051]
[1763212486419,0.04684803,95940.0,95939.0,0.4051]
[1763212496932,0.04684803,95940.0,95939.0,0.0443]
[1763212499135,0.05970803,95940.0,95939.0,0.0443]
[1763212499329,0.04327,95935.0,95934.0,0.40536]
[1763212499726,0.15826069,95935.0,95934.0,0.40536]
[1763212500827,0.15826069,95935.0,95934.0,0.40636]
[1763212501224,0.15826069,95935.0,95934.0,0.3618]
[1763212501428,0.04327,95914.0,95913.0,0.07494895]
[1763212501629,0.04327,95906.0,95905.0,0.38337]
[1763212501831,0.03938,95909.0,95908.0,0.04456]
[1763212502232,0.15829462,95909.0,95908.0,0.08204633]
[1763212502432,0.15829462,95909.0,95908.0,0.04456]
[1763212505328,0.11891462,95909.0,95908.0,0.04456]
[1763212506041,0.13860462,95909.0,95908.0,0.04456]
[1763212508539,0.15829462,95909.0,95908.0,0.04456]
[1763212510334,0.15829462,95909.0,95907.0,0.02804598]
[1763212510537,0.03938,95908.0,95907.0,0.05061598]
[1763212510842,0.03938,95908.0,95907.0,0.04456]
[1763212510843,0.15820566,95908.0,95907.0,0.04456]
[1763212516154,0.11882566,95908.0,95907.0,0.04456]
[1763212516346,0.01984637,95918.0,95917.0,0.04501]
[1763212516546,0.03953637,95918.0,95917.0,0.07304596]
[1763212516850,0.15209945,95918.0,95917.0,0.07304596]
[1763212517246,0.15209945,95918.0,95917.0,0.04501]
[1763212517446,0.11271945,95918.0,95917.0,0.04501]
[1763212518346,0.13240945,95918.0,95917.0,0.04501]
[1763212518653,0.15209945,95918.0,95917.0,0.04501]
[1763212519050,0.15209945,95918.0,95917.0,0.08239109]
[1763212519354,0.13240945,95918.0,95917.0,0.04501]
[1763212519650,0.11271945,95918.0,95917.0,0.04501]
[1763212519851,0.15209945,95918.0,95917.0,0.04501]
[1763212521048,0.15209945,95918.0,95917.0,0.08240318]
[1763212521553,0.15209945,95918.0,95917.0,0.04501]
[1763212522047,0.11271945,95918.0,95917.0,0.04501]
[1763212522950,0.00015637,95918.0,95917.0,0.149345]
[1763212523149,0.00015637,95918.0,95916.0,0.3608]
[1763212523150,0.01969,95934.0,95933.0,0.04501]
[1763212523354,0.01969,95934.0,95933.0,0.07305595]
[1763212523551,0.13941611,95934.0,95933.0,0.04501]
[1763212523743,0.11972611,95934.0,95933.0,0.40581]
[1763212524251,0.03953637,95943.0,95942.0,0.04501]
[1763212524648,0.15473067,95943.0,95942.0,0.04501]
[1763212524955,0.15473067,95943.0,95942.0,0.07304686]
[1763212525956,0.15473067,95943.0,95942.0,0.07304708]
[1763212526447,0.15473067,95943.0,95942.0,0.04501]
[1763212526850,0.15473067,95943.0,95942.0,0.07304554]
[1763212527455,0.15473067,95943.0,95942.0,0.04501]
[1763212529046,0.15473067,95943.0,95942.0,0.07305154]
[1763212531356,0.15473067,95943.0,95942.0,0.04501]
[1763212534855,0.11535067,95943.0,95942.0,0.04501]
[1763212535060,0.11535067,95943.0,95942.0,0.08239249]
[1763212535258,0.11535067,95943.0,95942.0,0.04501]
[1763212535462,0.13504067,95943.0,95942.0,0.08239249]
[1763212536157,0.13504067,95943.0,95942.0,0.04501]
[1763212536354,0.11535067,95943.0,95942.0,0.08239249]
[1763212537164,0.11535067,95943.0,95942.0,0.04501]
[1763212537463,0.15473067,95943.0,95942.0,0.08235913]
[1763212537668,0.15473067,95943.0,95942.0,0.04501]
[1763212540967,0.15473067,95943.0,95942.0,0.08235913]
[1763212541561,0.15473067,95943.0,95942.0,0.04501]
[1763212543368,0.11535067,95943.0,95942.0,0.04501]
[1763212544972,0.00015637,95943.0,95942.0,0.04501]
[1763212545171,0.40018,95964.0,95963.0,0.04455]
[1763212545374,0.03938,95964.0,95963.0,0.04455]
[1763212545570,0.14903088,95964.0,95963.0,0.04455]
[1763212546872,0.03938,95961.0,95960.0,0.00219803]
[1763212547174,0.15222024,95961.0,95960.0,0.00219803]
[1763212547871,0.15222024,95961.0,95960.0,0.02439803]
[1763212548268,0.15222024,95961.0,95960.0,0.04674803]
[1763212548873,0.15222024,95961.0,95960.0,0.06045803]
[1763212549975,0.15222024,95961.0,95960.0,0.04674803]
[1763212550871,0.15222024,95961.0,95960.0,0.00219803]
[1763212551877,0.15222024,95961.0,95960.0,0.03024908]
[1763212552170,0.15222024,95961.0,95960.0,0.04674803]
[1763212554974,0.15222024,95961.0,95960.0,0.06045803]
[1763212559677,0.15222024,95961.0,95960.0,0.09783439]
[1763212560680,0.11284024,95961.0,95960.0,0.42125803]
[1763212560984,0.40018,95974.0,95973.0,0.04366]
[1763212561378,0.15573024,95974.0,95973.0,0.07172092]
[1763212561579,0.11635024,95974.0,95973.0,0.04366]
[1763212561981,0.13604024,95974.0,95973.0,0.04366]
[1763212562183,0.15573024,95974.0,95973.0,0.04366]
[1763212569889,0.11635024,95974.0,95973.0,0.04366]
[1763212570685,0.0418135,95983.0,95982.0,0.04366]
[1763212571085,0.15705552,95983.0,95982.0,0.04366]
[1763212572197,0.13736552,95983.0,95982.0,0.08102283]
[1763212573290,0.11767552,95983.0,95982.0,0.0810022]
[1763212573496,0.0024335,95983.0,95982.0,0.04366]
[1763212574503,0.0024335,95983.0,95982.0,0.09995298]
[1763212575301,0.0024335,95983.0,95982.0,0.04366]
[1763212575596,0.0024335,95983.0,95982.0,0.09995298]
[1763212576098,0.00166483,96000.0,95981.0,0.3608]
[1763212576399,0.00166483,96000.0,95996.0,0.3608]
[1763212576591,0.00166483,96000.0,95996.0,0.41671658]
[1763212576793,0.00166483,96000.0,95996.0,0.46106658]
[1763212576992,0.00166483,96000.0,95996.0,0.40515]
[1763212577189,0.04345,96020.0,96019.0,0.04435]
[1763212577400,0.40425,96031.0,96030.0,0.04435]
[1763212577601,0.40425,96031.0,96030.0,0.04654803]
[1763212577800,0.51596881,96031.0,96030.0,0.04654803]
[1763212578201,0.15516881,96031.0,96030.0,0.42039803]
[1763212578402,0.13346881,96031.0,96030.0,0.42039803]
[1763212578597,0.11171881,96031.0,96030.0,0.42039803]
[1763212578901,0.00026029,96046.0,96035.0,0.04435]
[1763212579101,0.00073267,96040.0,96035.0,0.04435]
[1763212579396,0.04845,96036.0,96035.0,0.04435]
[1763212580099,0.04345,96031.0,96030.0,0.38548803]
[1763212580314,0.04345,96031.0,96030.0,0.02468803]
[1763212580598,0.51800306,96031.0,96030.0,0.00219803]
[1763212580901,0.51800306,96031.0,96013.0,0.3608]
[1763212580902,0.04345,96014.0,96013.0,0.40515]
[1763212581496,0.3608,96031.0,96026.0,0.03554]
[1763212581702,0.00734,96027.0,96026.0,0.0574]
[1763212582103,0.11581464,96027.0,96026.0,0.0574]
[1763212582306,0.00073267,96030.0,96029.0,0.04435]
[1763212582492,0.3608,96052.0,96035.0,0.04435]
[1763212582493,0.00867,96036.0,96035.0,0.04435]
[1763212583000,0.01234,96036.0,96035.0,0.04435]
[1763212583796,0.00734,96034.0,96033.0,0.01305]
[1763212584206,0.1223673,96034.0,96033.0,0.0574]
[1763212584605,0.00734,96031.0,96030.0,0.40734803]
[1763212584993,0.12634887,96031.0,96030.0,0.04654803]
[1763212585400,0.12634887,96031.0,96030.0,0.00219803]
[1763212586102,0.12634887,96031.0,96030.0,0.02468803]
[1763212586699,0.12634887,96031.0,96030.0,0.04654803]
[1763212588100,0.11900887,96031.0,96030.0,0.00219803]
[1763212588498,0.00734,96031.0,96030.0,0.04648803]
[1763212588903,0.11843184,96031.0,96030.0,0.04648803]
[1763212589297,0.11843184,96031.0,96030.0,0.00219803]
[1763212590600,0.00734,96020.0,96019.0,0.05742]
[1763212590902,0.00807267,96020.0,96019.0,0.05742]
[1763212591906,0.11693581,96020.0,96019.0,0.03544]
[1763212592106,0.00734,96013.0,96012.0,0.03544]
[1763212592307,0.00734,96013.0,96012.0,0.05742]
[1763212592504,0.11620314,96013.0,96012.0,0.05742]
[1763212594796,0.00734,96011.0,96010.0,0.00235432]
[1763212595000,0.00734,96011.0,96010.0,0.02466432]
[1763212595201,0.11743081,96011.0,96010.0,0.04664432]
[1763212595801,0.11009081,96011.0,96010.0,0.04664432]
[1763212596201,0.12161507,96023.0,96022.0,0.04429]
[1763212596411,0.00734,96023.0,96022.0,0.04429]
[1763212596809,0.12079126,96023.0,96022.0,0.04429]
[1763212597609,0.11712126,96023.0,96022.0,0.04429]
[1763212598410,0.12079126,96023.0,96022.0,0.04429]
[1763212602117,0.11712126,96023.0,96022.0,0.04429]
[1763212602716,0.11345126,96023.0,96022.0,0.04429]
[1763212603109,0.11076954,96035.0,96033.0,0.01313]
[1763212603309,0.00734,96035.0,96034.0,0.04429]
[1763212603509,0.11810954,96035.0,96034.0,0.04429]
[1763212604416,0.11810954,96035.0,96034.0,0.07225117]
[1763212604614,0.11810954,96035.0,96034.0,0.04429]
[1763212604916,0.11076954,96035.0,96034.0,0.40509]
[1763212605516,0.11443954,96035.0,96034.0,0.40509]
[1763212605916,0.11076954,96035.0,96034.0,0.40509]
[1763212606110,0.11810954,96035.0,96034.0,0.02231]
[1763212606305,0.11610954,96035.0,96031.0,0.03717877]
[1763212606506,0.00734,96032.0,96031.0,0.03717877]
[1763212606709,0.36814,96032.0,96031.0,0.02801874]
[1763212606910,0.48896732,96032.0,96031.0,0.02801874]
[1763212607422,0.49263732,96032.0,96031.0,0.02801874]
[1763212608214,0.49263732,96032.0,96030.0,0.02801874]
[1763212608813,0.00367,96031.0,96026.0,0.01313]
[1763212609013,0.00367,96031.0,96030.0,0.04429]
[1763212609519,0.12009112,96031.0,96030.0,0.04429]
[1763212613418,0.00073267,96030.0,96022.0,0.0280251]
[1763212613714,0.3608,96023.0,96022.0,0.04429]
[1763212614122,0.47806452,96023.0,96022.0,0.04429]
[1763212614318,0.48173452,96023.0,96022.0,0.04429]
[1763212614520,0.00734,96021.0,96020.0,0.04648803]
[1763212614921,0.11958566,96021.0,96020.0,0.04648803]
[1763212622920,0.06958566,96021.0,96020.0,0.04648803]
[1763212625626,0.06958566,96021.0,96020.0,0.00219803]
[1763212626226,0.06958566,96021.0,96020.0,0.03021377]
[1763212627125,0.06958566,96021.0,96020.0,0.00219803]
[1763212631124,0.06958566,96021.0,96020.0,0.04744803]
[1763212634635,0.06958566,96021.0,96020.0,0.0846268]
[1763212635225,0.06958566,96021.0,96020.0,0.40824803]
[1763212635626,0.06958566,96021.0,96020.0,0.4456107]
[1763212636324,0.06958566,96021.0,96020.0,0.40824803]
[1763212637536,0.06958566,96021.0,96020.0,0.04744803]
[1763212640037,0.06958566,96021.0,96020.0,0.40824803]
[1763212642529,0.03458566,96021.0,96020.0,0.40824803]
[1763212650937,0.005,96036.0,96035.0,0.05451]
[1763212651137,0.04791,96036.0,96035.0,0.05451]
[1763212651437,0.15781944,96036.0,96035.0,0.04419]
[1763212652029,0.15781944,96036.0,96035.0,0.05768]
[1763212653233,0.15781944,96036.0,96035.0,0.04419]
[1763212654440,0.15781944,96036.0,96035.0,0.05425]
[1763212654640,0.11490944,96036.0,96035.0,0.05425]
[1763212654836,0.005,96036.0,96035.0,0.05425]
[1763212655042,0.04791,96036.0,96035.0,0.05425]
[1763212657843,0.005,96036.0,96035.0,0.05425]
[1763212658239,0.005,96036.0,96035.0,0.11001815]
[1763212658433,0.005,96036.0,96035.0,0.05425]
[1763212660738,0.04791,96036.0,96035.0,0.04419]
[1763212660945,0.04291,96033.0,96032.0,0.03728033]
[1763212661143,0.04291,96031.0,96030.0,0.03947836]
[1763212661337,0.04291,96021.0,96020.0,0.03728033]
[1763212661645,0.05644267,96020.0,96019.0,0.02798247]
[1763212662043,0.05644267,96020.0,96018.0,0.02798247]
[1763212662044,0.17071474,96020.0,96018.0,0.02798247]
[1763212662244,0.04291,96019.0,96017.0,0.02798247]
[1763212662545,0.15718207,96018.0,96017.0,0.07217247]
[1763212662938,0.04291,96018.0,96017.0,0.04419]
[1763212663134,0.16259075,96018.0,96017.0,0.04419]
[1763212663344,0.16259075,96018.0,96017.0,0.07217126]
[1763212664248,0.16259075,96018.0,96017.0,0.04419]
[1763212664943,0.04291,96017.0,96016.0,0.02798126]
[1763212665345,0.04291,96016.0,96015.0,0.05089126]
[1763212665745,0.15485611,96016.0,96015.0,0.07217126]
[1763212666145,0.15485611,96016.0,96014.0,0.02798126]
[1763212666342,0.15485611,96016.0,96010.0,0.00015629]
[1763212666343,0.04291,96011.0,96010.0,0.00015629]
[1763212666543,0.40371,96011.0,96010.0,0.00015629]
[1763212666745,0.52101225,96011.0,96010.0,0.00015629]
[1763212667446,0.04291,96001.0,96000.0,0.02798202]
[1763212667649,0.40371,96001.0,96000.0,0.02798202]
[1763212667849,0.40371,96001.0,95974.0,0.3608]
[1763212667850,0.04364267,96000.0,95998.0,0.02798202]
[1763212668150,0.04291,95994.0,95993.0,0.02798202]
[1763212668350,0.04291,95992.0,95991.0,0.07217202]
[1763212668646,0.16154212,95992.0,95991.0,0.07217202]
[1763212669250,0.16154212,95992.0,95991.0,0.04419]
[1763212670345,0.16154212,95992.0,95991.0,0.04519]
[1763212672353,0.16154212,95992.0,95991.0,0.08661169]
[1763212672543,0.16154212,95992.0,95991.0,0.05868]
[1763212673353,0.16154212,95992.0,95991.0,0.08660496]
[1763212674249,0.3608,96001.0,95991.0,0.05868]
[1763212674453,0.40371,96001.0,96000.0,0.05425]
[1763212674648,0.40371,96001.0,96000.0,0.05644803]
[1763212674858,0.52036589,96001.0,96000.0,0.05644803]
[1763212675654,0.15956589,96001.0,96000.0,0.05644803]
[1763212677457,0.13846589,96001.0,96000.0,0.05644803]
[1763212677654,0.15956589,96001.0,96000.0,0.05644803]
[1763212677861,0.15956589,96001.0,96000.0,0.08436745]
[1763212678055,0.11665589,96001.0,96000.0,0.05644803]
[1763212678351,0.00015584,96003.0,96000.0,0.01225803]
[1763212678352,0.10962267,96002.0,96000.0,0.01225803]
[1763212678557,0.10962267,96002.0,96001.0,0.04607]
[1763212678748,0.10962267,96002.0,96000.0,0.01225803]
[1763212678749,0.00015584,96003.0,96002.0,0.04607]
[1763212678945,0.00015584,96003.0,96002.0,0.40687]
[1763212679148,0.1188603,96003.0,96002.0,0.40687]
[1763212679956,0.1414103,96003.0,96002.0,0.40687]
[1763212680160,0.1642803,96003.0,96002.0,0.40687]
[1763212680364,0.1642803,96003.0,96002.0,0.43476682]
[1763212681155,0.1188603,96003.0,96002.0,0.40687]
[1763212681361,0.00015584,96003.0,96002.0,0.40687]
[1763212681561,0.02270584,96003.0,96002.0,0.43476858]
[1763212681755,0.04557584,96003.0,96002.0,0.43476858]
[1763212682154,0.15650422,96003.0,96002.0,0.43476858]
[1763212682356,0.15650422,96003.0,96002.0,0.40687]
[1763212685764,0.3608,96020.0,96019.0,0.04607]
[1763212685765,0.04542,96020.0,96019.0,0.04607]
[1763212686157,0.16220959,96020.0,96019.0,0.07397377]
[1763212686363,0.16220959,96020.0,96019.0,0.04607]
[1763212686660,0.11678959,96020.0,96019.0,0.04607]
[1763212687061,0.11742364,96028.0,96027.0,0.04607]
[1763212687259,0.04542,96021.0,96020.0,0.00219803]
[1763212687464,0.04542,96021.0,96010.0,0.0462262]
[1763212687465,0.04542,96011.0,96010.0,0.0462262]
[1763212687667,0.04542,96011.0,96010.0,0.04842423]
[1763212687966,0.16284364,96011.0,96010.0,0.04842423]
[1763212688466,0.16284364,96011.0,96010.0,0.08562926]
[1763212688660,0.16284364,96011.0,96010.0,0.44642926]
[1763212689257,0.16284364,96011.0,96010.0,0.40922423]
[1763212689659,0.40622,96021.0,96020.0,0.04607]
[1763212689855,0.04542,96021.0,96020.0,0.04826803]
[1763212690061,0.1312382,96021.0,96020.0,0.04826803]
[1763212690364,0.04542,96030.0,96029.0,0.04607]
[1763212690563,0.04615267,96030.0,96029.0,0.04607]
[1763212690763,0.15484087,96030.0,96029.0,0.04607]
[1763212692668,0.04615267,96030.0,96029.0,0.04607]
[1763212693664,0.00073267,96030.0,96029.0,0.04607]
[1763212693870,0.00026029,96046.0,96035.0,0.04486]
[1763212694172,0.12117434,96036.0,96035.0,0.43358927]
[1763212694370,0.12117434,96036.0,96035.0,0.40566]
[1763212694766,0.12117434,96036.0,96035.0,0.43358927]
[1763212694968,0.005,96036.0,96035.0,0.40566]
[1763212697272,0.005,96036.0,96035.0,0.43353944]
[1763212698869,0.005,96036.0,96035.0,0.40566]
[1763212701367,0.02746,96036.0,96035.0,0.40566]
[1763212701563,0.04876,96036.0,96035.0,0.40566]
[1763212702163,0.005,96036.0,96035.0,0.40566]
[1763212702875,0.02746,96036.0,96035.0,0.40566]
[1763212703077,0.005,96036.0,96035.0,0.40566]
[1763212703872,0.005,96036.0,96035.0,0.5098668]
[1763212704671,0.005,96036.0,96035.0,0.44292582]
[1763212704874,0.005,96036.0,96035.0,0.40566]
[1763212706072,0.04876,96036.0,96035.0,0.40566]
[1763212710283,0.04876,96036.0,96034.0,0.03726582]
[1763212710284,0.04385,96031.0,96030.0,0.00219803]
[1763212710481,0.40465,96031.0,96030.0,0.00219803]
[1763212710670,0.52008679,96031.0,96030.0,0.00219803]
[1763212710870,0.52008679,96031.0,96030.0,0.02453803]
[1763212711086,0.52008679,96031.0,96030.0,0.04728803]
[1763212712082,0.52008679,96031.0,96030.0,0.00219803]
[1763212712288,0.04385,96023.0,96022.0,0.42040582]
[1763212712778,0.04385,96023.0,96022.0,0.44315582]
[1763212712779,0.16172631,96023.0,96022.0,0.44315582]
[1763212713180,0.16172631,96023.0,96022.0,0.40589]
[1763212714386,0.06238,96036.0,96035.0,0.04509]
[1763212714783,0.1756836,96036.0,96033.0,0.02795092]
[1763212714984,0.04385,96034.0,96033.0,0.05029092]
[1763212715390,0.15679001,96034.0,96033.0,0.05029092]
[1763212715681,0.15679001,96034.0,96033.0,0.04509]
[1763212720378,0.15679001,96034.0,96033.0,0.40589]
[1763212720585,0.005,96036.0,96034.0,0.1042079]
[1763212720787,0.04885,96036.0,96035.0,0.04509]
[1763212721991,0.04885,96036.0,96035.0,0.10103816]
[1763212723087,0.04885,96036.0,96035.0,0.04509]
[1763212724897,0.06238,96036.0,96035.0,0.07829192]
[1763212725087,0.06238,96036.0,96035.0,0.10104192]
[1763212725283,0.06238,96036.0,96035.0,0.05595192]
[1763212725686,0.06238,96036.0,96033.0,0.41675192]
[1763212725889,0.04385,96034.0,96033.0,0.41675192]
[1763212726091,0.04385,96034.0,96033.0,0.43909192]
[1763212726595,0.04385,96034.0,96033.0,0.46184192]